fUSD/lending_fUSD_20260311
["ID","MTS","AMOUNT","RATE_DAILY","PERIOD"]
[408183920,1773189309624,-4224.78642111,0.000137,2]
[408183921,1773189309725,-10000.01,0.000137,2]
[408183922,1773189312104,-10000.01,0.000137,2]
[408183923,1773189442276,500.0,8.6e-05,2]
[408183924,1773189442671,500.0,8.6e-05,2]
[408183925,1773189443165,500.0,8.6e-05,2]
[408183926,1773189443671,500.0,8.6e-05,2]
[408183927,1773189444160,500.0,8.6e-05,2]
[408183928,1773189444640,500.0,8.6e-05,2]
[408183929,1773189445100,500.0,8.6e-05,2]
[408183930,1773189445449,500.0,8.6e-05,2]
[408183931,1773189445746,500.0,8.6e-05,2]
[408183932,1773189446056,500.0,8.6e-05,2]
[408183933,1773189446527,500.0,8.6e-05,2]
[408183934,1773189447010,737.20945321,8.6e-05,2]
[408183935,1773189448789,262.80054679,8.6e-05,2]
[408183936,1773189448811,237.19945321,8.6e-05,2]
[408183937,1773189452441,500.0,8.6e-05,2]
[408183938,1773190156140,-519.42423358,0.000136,2]
[408183941,1773190232000,-400.0,0.00013599,2]
[408183942,1773190232055,-800.0,0.00013599,2]
[408183943,1773190232065,-8740.87196642,0.000136,2]
[408183944,1773190232075,-262.0,0.000136,2]
[408183945,1773190232089,-300.0,0.00013699,2]
[408183946,1773190232100,-500.0,0.0001472,2]
[408183947,1773190232112,-500.25103097,0.0001472,2]
[408183948,1773190232122,-500.0,0.0001472,2]
[408183949,1773190232132,-1680.0,0.00014959,2]
[408183950,1773190232143,-150.0,0.00014999,2]
[408183951,1773190232152,-250.0,0.00015,2]
[408183952,1773190232162,-500.0,0.00015,30]
[408183953,1773190232171,-500.0,0.00015,30]
[408183954,1773190232181,-500.0,0.00015,30]
[408183955,1773190232191,-500.0,0.00015,30]
[408183956,1773190232201,-500.0,0.00015,30]
[408183957,1773190232210,-500.0,0.00015,30]
[408183958,1773190232220,-500.0,0.00015,30]
[408183959,1773190232230,-500.0,0.00015,30]
[408183960,1773190232239,-500.0,0.00015,30]
[408183961,1773190232248,-500.0,0.00015,30]
[408183962,1773190232258,-500.0,0.00015,30]
[408183963,1773190232268,-500.0,0.00015,30]
[408183965,1773190232278,-500.0,0.00015,30]
[408183967,1773190232287,-500.0,0.00015,30]
[408183969,1773190232297,-500.0,0.00015,30]
[408183971,1773190232306,-503.3509132,0.00015,30]
[408183973,1773190232315,-500.0,0.00015,30]
[408183975,1773190232326,-500.0,0.00015,30]
[408183977,1773190232336,-787.3,0.00015183,2]
[408183979,1773190232346,-500.0,0.00015268,2]
[408183985,1773190232582,-500.90911486,0.00015268,2]
[408183986,1773190232593,-150.99,0.0001531,2]
[408183987,1773190232604,-9999.99,0.0001531,2]
[408183988,1773190232614,-163.86775,0.00015318,7]
[408183989,1773190232625,-167.20908889,0.00015733,2]
[408183990,1773190232636,-255.0,0.00016124,2]
[408183991,1773190232646,-2351.0,0.00016455,2]
[408183992,1773190232657,-500.0,0.00016846,2]
[408183993,1773190232667,-500.0,0.00016901,2]
[408183994,1773190232677,-162.0,0.0001691,2]
[408183995,1773190232688,-500.0,0.00016956,2]
[408183996,1773190232699,-500.0,0.00017,2]
[408183997,1773190232710,-162.0,0.00017,2]
[408183998,1773190232721,-500.0,0.00017011,2]
[408183999,1773190232732,-500.0,0.00017066,2]
[408184000,1773190232743,-500.0,0.00017121,2]
[408184001,1773190232753,-500.0,0.00017176,2]
[408184002,1773190232762,-500.0,0.00017231,2]
[408184003,1773190232772,-12829.13,0.00017283,2]
[408184004,1773190232783,-500.0,0.00017286,2]
[408184005,1773190232797,-162.0,0.0001729,2]
[408184006,1773190232808,-433.0,0.00017339,2]
[408184007,1773190232820,-500.0,0.00017341,2]
[408184008,1773190232831,-500.0,0.00017396,2]
[408184009,1773190232841,-500.0,0.00017451,2]
[408184010,1773190232851,-12949.50070407,0.00017628,2]
[408184011,1773190232867,-6478.30890194,0.00017628,2]
[408184013,1773190237700,-346.22909034,0.00017628,2]
[408184014,1773190237711,-13158.97630365,0.00017628,2]
[408184015,1773190237722,-1000.0,0.00017628,2]
[408184016,1773190237731,-605.97,0.00017652,2]
[408184017,1773190237740,-500.0,0.00017673,2]
[408184018,1773190237749,-2798.92,0.00017728,2]
[408184019,1773190237758,-14049.58,0.00017728,2]
[408184020,1773190237768,-800.0,0.00017808,2]
[408184021,1773190237778,-200.0,0.00017822,2]
[408184022,1773190237789,-2000.0,0.00017836,2]
[408184023,1773190237798,-515.7545181,0.000179,2]
[408184024,1773190237807,-605.97,0.00017926,2]
[408184025,1773190237817,-3535.04,0.0001796,2]
[408184026,1773190237827,-250.0,0.0001797,2]
[408184027,1773190237836,-150.0,0.00018001,2]
[408184028,1773190237845,-1000.0,0.00018066,2]
[408184029,1773190237854,-1000.0,0.00018066,2]
[408184030,1773190237864,-1000.0,0.00018066,2]
[408184031,1773190237874,-1000.0,0.00018066,2]
[408184032,1773190237883,-1000.0,0.00018066,2]
[408184033,1773190237892,-1000.0,0.00018066,2]
[408184034,1773190237900,-1000.0,0.00018066,2]
[408184035,1773190237909,-1000.0,0.00018066,2]
[408184036,1773190237919,-991.0,0.000181,2]
[408184037,1773190237928,-3151.87627768,0.00018121,2]
[408184038,1773190237937,-1500.0,0.00018178,2]
[408184039,1773190237946,-722.06,0.00018194,2]
[408184040,1773190237955,-605.97,0.000182,2]
[408184041,1773190237963,-500.0,0.00018221,2]
[408184042,1773190237972,-3151.8762776,0.00018319,2]
[408184043,1773190237982,-500.0,0.00018347,2]
[408184044,1773190237991,-500.0,0.00018347,2]
[408184045,1773190238000,-500.0,0.00018347,2]
[408184046,1773190238009,-500.0,0.00018347,2]
[408184048,1773190238019,-500.0,0.00018347,2]
[408184049,1773190238027,-500.0,0.00018347,2]
[408184050,1773190238037,-500.0,0.00018347,2]
[408184051,1773190238046,-500.0,0.00018347,2]
[408184052,1773190238055,-3240.0,0.00018389,2]
[408184053,1773190238064,-526.52,0.00018474,2]
[408184054,1773190238074,-3151.8762776,0.00018516,2]
[408184055,1773190238083,-600.0,0.00018535,2]
[408184056,1773190238093,-6160.87,0.00018536,2]
[408184057,1773190238102,-736.0,0.00018629,2]
[408184058,1773190238112,-722.06,0.00018649,2]
[408184059,1773190238121,-3151.8762776,0.00018714,2]
[408184060,1773190238130,-2806.0,0.0001872,2]
[408184061,1773190238140,-494.85,0.0001882,2]
[408184062,1773190238150,-3151.8762776,0.00018912,2]
[408184063,1773190238160,-722.06,0.00019104,2]
[408184064,1773190238170,-3151.8762776,0.00019109,2]
[408184065,1773190238181,-2000.0,0.000192,2]
[408184066,1773190238192,-494.85,0.00019201,2]
[408184067,1773190238202,-1000.0,0.00019274,2]
[408184068,1773190238212,-3151.8762776,0.00019307,2]
[408184069,1773190238222,-2806.0,0.0001936,2]
[408184070,1773190238231,-1000.99,0.00019498,2]
[408184071,1773190238241,-3151.8762776,0.00019505,2]
[408184072,1773190238250,-339.0,0.00019509,2]
[408184073,1773190238260,-1000.0,0.00019548,2]
[408184074,1773190238268,-722.06,0.00019558,2]
[408184075,1773190238278,-494.86051683,0.00019581,2]
[408184076,1773190238287,-339.0,0.00019585,2]
[408184077,1773190238297,-292.21,0.000196,30]
[408184078,1773190238306,-163.02,0.000196,3]
[408184079,1773190238315,-2500.0,0.00019626,2]
[408184080,1773190238324,-339.0,0.00019672,2]
[408184081,1773190238333,-161.0,0.0001968,2]
[408184082,1773190238343,-1977.67132423,0.000197,2]
[408184083,1773190238352,-3151.8762776,0.00019702,2]
[408184084,1773190238361,-174.359556,0.00019726,2]
[408184085,1773190238370,-174.359556,0.00019726,2]
[408184086,1773190238380,-5164.900926,0.00019726,2]
[408184087,1773190238389,-5164.900926,0.00019726,2]
[408184088,1773190238399,-5164.900926,0.00019726,2]
[408184089,1773190238408,-163.0,0.000198,3]
[408184090,1773190238418,-2535.37,0.00019806,2]
[408184091,1773190238427,-2542.72101729,0.0001981,2]
[408184092,1773190238437,-160.0,0.00019815,2]
[408184093,1773190238447,-172.91703981,0.00019815,2]
[408184094,1773190238456,-1000.0,0.00019822,2]
[408184095,1773190238466,-339.0,0.00019856,2]
[408184096,1773190238476,-4473.8803,0.00019899,2]
[408184097,1773190238485,-500.0,0.00019899,2]
[408184098,1773190238495,-500.0,0.00019899,2]
[408184099,1773190238504,-500.0,0.00019899,2]
[408184100,1773190238513,-500.0,0.00019899,2]
[408184101,1773190238523,-500.0,0.00019899,2]
[408184102,1773190238533,-500.0,0.00019899,2]
[408184103,1773190238542,-500.0,0.00019899,2]
[408184104,1773190238552,-500.0,0.00019899,2]
[408184105,1773190238561,-2089.62629962,0.00019899,2]
[408184106,1773190238574,-2089.62629962,0.00019899,2]
[408184107,1773190238583,-2089.62629962,0.00019899,2]
[408184108,1773190238593,-2089.62629962,0.00019899,2]
[408184109,1773190238602,-2089.62629962,0.000199,2]
[408184110,1773190238612,-2089.62629962,0.000199,2]
[408184111,1773190238621,-2089.62629962,0.000199,2]
[408184112,1773190238632,-2089.62629962,0.000199,2]
[408184113,1773190238641,-2745.80628346,0.000199,2]
[408184114,1773190238651,-500.0,0.000199,2]
[408184115,1773190238660,-500.0,0.000199,2]
[408184116,1773190238670,-500.0,0.000199,2]
[408184117,1773190238680,-333.18627222,0.000199,2]
[408184118,1773190238689,-198.10289827,0.000199,2]
[408184119,1773190238699,-251.44554938,0.000199,2]
[408184120,1773190238708,-2089.62629962,0.000199,2]
[408184121,1773190238718,-3151.8762776,0.000199,2]
[408184122,1773190238728,-197.13766539,0.000199,3]
[408184123,1773190238737,-4923.52759809,0.000199,2]
[408184124,1773190238747,-291.31639444,0.000199,2]
[408184125,1773190238756,-249.54503843,0.000199,2]
[408184126,1773190238766,-173.33039198,0.000199,2]
[408184127,1773190238776,-185.14716212,0.0001999,2]
[408184128,1773190238789,-185.14716212,0.0001999,2]
[408184129,1773190238798,-216.911124,0.00019993,2]
[408184130,1773190238808,-500.0,0.00019998,2]
[408184131,1773190238818,-500.0,0.00019998,2]
[408184132,1773190238828,-500.0,0.00019998,2]
[408184133,1773190238837,-500.0,0.00019998,2]
[408184134,1773190238847,-500.0,0.00019998,2]
[408184135,1773190238858,-500.0,0.00019998,2]
[408184136,1773190238868,-500.0,0.00019998,2]
[408184137,1773190238878,-500.0,0.00019998,2]
[408184138,1773190238887,-500.0,0.00019998,2]
[408184139,1773190238896,-500.0,0.00019999,2]
[408184140,1773190238905,-500.0,0.00019999,2]
[408184141,1773190238915,-500.0,0.00019999,2]
[408184142,1773190238926,-500.0,0.00019999,2]
[408184143,1773190238935,-500.0,0.00019999,2]
[408184144,1773190238944,-550.4,0.00019999,2]
[408184145,1773190238954,-36118.3232695,0.00019999,2]
[408184146,1773190238963,-1073.71116388,0.00019999,5]
[408184147,1773190238972,-350.0,0.00019999,2]
[408184148,1773190238981,-350.0,0.00019999,2]
[408184149,1773190238990,-303.80696665,0.00019999,2]
[408184150,1773190238999,-500.0,0.00019999,2]
[408184151,1773190239009,-439.8301473,0.00019999,2]
[408184152,1773190239018,-1766.57,0.00019999,2]
[408184153,1773190239027,-1766.57,0.00019999,2]
[408184154,1773190239036,-1766.57,0.00019999,2]
[408184155,1773190239046,-1766.57,0.00019999,2]
[408184156,1773190239055,-1766.57,0.00019999,2]
[408184157,1773190239064,-1766.57,0.00019999,2]
[408184158,1773190239074,-1766.57,0.00019999,2]
[408184159,1773190239083,-1766.57,0.00019999,2]
[408184160,1773190239092,-1766.57,0.00019999,2]
[408184161,1773190239102,-1766.57,0.00019999,2]
[408184162,1773190239111,-1766.57,0.00019999,2]
[408184163,1773190239121,-1766.57,0.00019999,2]
[408184164,1773190239130,-1766.57,0.00019999,2]
[408184165,1773190239140,-1766.57,0.00019999,2]
[408184166,1773190239149,-1766.57,0.00019999,2]
[408184167,1773190239159,-1766.57,0.00019999,2]
[408184168,1773190239169,-1766.57,0.00019999,2]
[408184169,1773190239178,-1766.57,0.00019999,2]
[408184170,1773190239187,-1766.57,0.00019999,2]
[408184171,1773190239197,-1766.57,0.00019999,2]
[408184172,1773190239207,-1766.57,0.00019999,2]
[408184173,1773190239217,-1766.57,0.00019999,2]
[408184174,1773190239226,-1766.57,0.00019999,2]
[408184175,1773190239236,-1766.78298099,0.00019999,2]
[408184176,1773190239245,-500.0,0.00019999,2]
[408184177,1773190239254,-500.5,0.00019999,2]
[408184178,1773190239263,-1198.41,0.00019999,2]
[408184179,1773190239272,-1198.41,0.00019999,2]
[408184180,1773190239282,-1198.41,0.00019999,2]
[408184181,1773190239293,-1198.41,0.00019999,2]
[408184182,1773190239302,-1198.41,0.00019999,2]
[408184183,1773190239312,-1198.41,0.00019999,2]
[408184184,1773190239321,-1198.41,0.00019999,2]
[408184185,1773190239330,-1198.41,0.00019999,2]
[408184186,1773190239340,-1198.41,0.00019999,2]
[408184187,1773190239350,-1198.41,0.00019999,2]
[408184188,1773190239359,-1198.41,0.00019999,2]
[408184189,1773190239369,-1198.41,0.00019999,2]
[408184190,1773190239378,-1198.41,0.00019999,2]
[408184191,1773190239387,-1198.41,0.00019999,2]
[408184192,1773190239397,-1198.41,0.00019999,2]
[408184193,1773190239406,-1198.41,0.00019999,2]
[408184194,1773190239416,-1198.41,0.00019999,2]
[408184195,1773190239425,-1198.41,0.00019999,2]
[408184196,1773190239435,-1198.41,0.00019999,2]
[408184197,1773190239444,-1198.41,0.00019999,2]
[408184198,1773190239454,-1198.41,0.00019999,2]
[408184199,1773190239463,-1198.41,0.00019999,2]
[408184200,1773190239472,-1198.41,0.00019999,2]
[408184201,1773190239482,-1198.47103818,0.00019999,2]
[408184202,1773190239491,-500.0,0.00019999,2]
[408184203,1773190239500,-500.0,0.00019999,2]
[408184204,1773190239510,-500.0,0.00019999,2]
[408184205,1773190239519,-500.0,0.00019999,2]
[408184206,1773190239528,-500.0,0.00019999,2]
[408184207,1773190239537,-500.0,0.00019999,2]
[408184208,1773190239546,-500.0,0.00019999,2]
[408184209,1773190239556,-500.0,0.00019999,2]
[408184210,1773190239565,-500.0,0.00019999,2]
[408184211,1773190239574,-500.0,0.00019999,2]
[408184212,1773190239583,-246.2,0.00019999,2]
[408184213,1773190239592,-500.0,0.00019999,2]
[408184214,1773190239601,-500.0,0.00019999,2]
[408184215,1773190239610,-500.0,0.00019999,2]
[408184216,1773190239620,-500.0,0.00019999,2]
[408184217,1773190239629,-500.0,0.00019999,2]
[408184218,1773190239639,-500.0,0.00019999,2]
[408184219,1773190239648,-536.80884023,0.00019999,2]
[408184220,1773190239657,-500.0,0.00019999,2]
[408184221,1773190239667,-500.0,0.00019999,2]
[408184222,1773190239677,-524.54846384,0.00019999,2]
[408184223,1773190239686,-500.0,0.00019999,2]
[408184225,1773190239696,-500.0,0.00019999,2]
[408184226,1773190239705,-500.0,0.00019999,2]
[408184227,1773190239715,-243.10314305,0.00019999,2]
[408184228,1773190239724,-512.6,0.00019999,2]
[408184229,1773190239735,-300.0,0.00019999,2]
[408184232,1773190239744,-300.0,0.00019999,2]
[408184234,1773190239753,-300.0,0.00019999,2]
[408184236,1773190239763,-300.0,0.00019999,2]
[408184237,1773190239772,-300.0,0.00019999,2]
[408184238,1773190239783,-300.0,0.00019999,2]
[408184239,1773190239795,-300.0,0.00019999,2]
[408184240,1773190239807,-300.0,0.00019999,2]
[408184241,1773190239817,-300.0,0.00019999,2]
[408184242,1773190239827,-300.0,0.00019999,2]
[408184243,1773190239837,-300.0,0.00019999,2]
[408184244,1773190239847,-300.0,0.00019999,2]
[408184245,1773190239857,-302.3241753,0.00019999,2]
[408184246,1773190239867,-500.0,0.00019999,2]
[408184247,1773190239877,-500.0,0.00019999,2]
[408184248,1773190239887,-500.0,0.00019999,2]
[408184249,1773190239896,-500.0,0.00019999,2]
[408184250,1773190239905,-500.0,0.00019999,2]
[408184251,1773190239914,-500.0,0.00019999,2]
[408184252,1773190239923,-500.0,0.00019999,2]
[408184253,1773190239932,-491.94249388,0.00019999,2]
[408184254,1773190239941,-500.0,0.00019999,2]
[408184255,1773190239950,-500.0,0.00019999,2]
[408184256,1773190239959,-302.61,0.00019999,2]
[408184257,1773190239968,-257.61241438,0.00019999,2]
[408184258,1773190239977,-204.00372193,0.00019999,5]
[408184259,1773190239986,-500.0,0.00019999,2]
[408184260,1773190239995,-500.0,0.00019999,2]
[408184261,1773190240004,-500.0,0.00019999,2]
[408184262,1773190240013,-595.06336316,0.00019999,2]
[408184263,1773190240022,-1095.49569653,0.00019999,5]
[408184264,1773190240031,-500.0,0.00019999,2]
[408184265,1773190240040,-500.0,0.00019999,2]
[408184266,1773190240049,-504.92020981,0.00019999,2]
[408184267,1773190240058,-500.0,0.00019999,2]
[408184268,1773190240067,-3000.0,0.00019999,2]
[408184269,1773190240076,-500.0,0.00019999,2]
[408184270,1773190240085,-3000.0,0.00019999,2]
[408184271,1773190240095,-500.0,0.00019999,2]
[408184272,1773190240103,-3000.0,0.00019999,2]
[408184273,1773190240112,-500.0,0.00019999,2]
[408184274,1773190240121,-3000.0,0.00019999,2]
[408184275,1773190240130,-500.0,0.00019999,2]
[408184276,1773190240139,-3000.0,0.00019999,2]
[408184277,1773190240149,-500.0,0.00019999,2]
[408184278,1773190240158,-3000.0,0.00019999,2]
[408184279,1773190240167,-500.0,0.00019999,2]
[408184280,1773190240176,-3000.0,0.00019999,2]
[408184281,1773190240185,-500.0,0.00019999,2]
[408184282,1773190240194,-3000.0,0.00019999,2]
[408184283,1773190240203,-500.0,0.00019999,2]
[408184284,1773190240212,-3000.0,0.00019999,2]
[408184285,1773190240221,-3000.0,0.00019999,2]
[408184286,1773190240230,-3000.0,0.00019999,2]
[408184287,1773190240240,-3000.0,0.00019999,2]
[408184288,1773190240249,-3000.0,0.00019999,2]
[408184289,1773190240258,-3000.0,0.00019999,2]
[408184290,1773190240267,-3000.0,0.00019999,2]
[408184291,1773190240276,-3000.0,0.00019999,2]
[408184292,1773190240286,-967.14869419,0.00019999,2]
[408184293,1773190240296,-500.0,0.00019999,2]
[408184294,1773190240305,-300.0,0.00019999,2]
[408184295,1773190240314,-150.0,0.00019999,2]
[408184296,1773190240323,-456.33776746,0.00019999,2]
[408184297,1773190240332,-266172.23476637,0.0002,2]
[408184299,1773190240395,-398883.25433926,0.0002,2]
[408184311,1773190242850,-450.0,0.000199,2]
[408184312,1773190242863,-300.0,0.000199,2]
[408184319,1773190245639,-24.59354738,0.000199,2]
[408184320,1773190245650,-150.0,0.000199,2]
[408184321,1773190245659,-125.40645262,0.0002,2]
[408184322,1773190245904,-4500.0,0.0002,2]
[408184323,1773190245915,-3466.15800539,0.0002,2]
[408184324,1773190245927,-7892.035199,0.0002,2]
[408184328,1773190512421,6399.0,0.0002,120]
[408184329,1773190771102,-511.62329168,0.00013417,2]
[408184330,1773190786084,-3130.093291,0.00013431,2]
[408184331,1773190794235,3739.823418,0.0001199,2]
[408184332,1773190794257,10000.01,0.0001199,2]
[408184333,1773190794278,10000.01,0.0001199,2]
[408184334,1773190794299,10000.01,0.0001199,2]
[408184335,1773190794320,1260.186582,0.0001199,2]
[408184336,1773190801543,-300.0,0.00013599,2]
[408184337,1773190801589,-1200.0,0.00013599,2]
[408184338,1773190801919,-1191.37382298,0.000136,2]
[408184339,1773190802228,-10000.01,0.000136,2]
[408184340,1773190802252,-10000.01,0.000136,2]
[408184341,1773190802269,-10000.01,0.000136,2]
[408184342,1773190802336,-10000.01,0.000136,2]
[408184343,1773190802459,-3114.08227702,0.000136,2]
[408184344,1773190802503,208.81251469,0.00013499,2]
[408184345,1773190803259,262.0,0.000136,2]
[408184391,1773190949046,500.0,8.6e-05,2]
[408184392,1773190949531,652.22807383,8.6e-05,2]
[408184393,1773190951253,500.0,8.6e-05,2]
[408184394,1773190951731,500.0,8.6e-05,2]
[408184395,1773190959122,500.0,8.6e-05,2]
[408184396,1773190959605,643.20047838,8.6e-05,2]
[408184401,1773191007331,571.63,8.34e-05,2]
[408184402,1773191007551,571.63,8.779e-05,2]
[408184403,1773191007768,571.63,9.218e-05,2]
[408184404,1773191007994,571.63,9.657e-05,2]
[408184405,1773191008310,571.63,0.00010096,2]
[408184406,1773191008530,571.63,0.00010535,2]
[408184407,1773191008751,571.63,0.00010974,2]
[408184408,1773191009119,571.63,0.00011413,2]
[408184409,1773191009249,426.97,0.00011852,2]
[408184410,1773191009270,144.66,0.00011852,2]
[408184411,1773191009517,571.63,0.00012291,2]
[408184413,1773191044733,155.0,0.0001273,2]
[408184414,1773191047403,170.0,0.0001273,2]
[408184415,1773191052103,-571.63,0.0001273,2]
[408184422,1773191138756,-155.0,0.00013169,2]
[408184423,1773191138782,-57.38390121,0.00013169,2]
[408184424,1773191359112,398.1545,0.0001263,2]
[408184432,1773191431731,-150.0,0.00013169,2]
[408184434,1773191431740,-155.0,0.00013169,2]
[408184436,1773191431750,-571.63,0.00013169,2]
[408184437,1773191431760,-258.0,0.00013169,2]
[408184438,1773191431769,-571.63,0.00013608,2]
[408184439,1773191431778,-571.63,0.00014047,2]
[408184440,1773191431787,-208.8126953,0.00014386,2]
[408184441,1773191431797,-571.63,0.00014486,2]
[408184442,1773191431807,-991.0,0.00014508,2]
[408184443,1773191431815,-483.10034441,0.00014509,2]
[408184444,1773191431824,-483.10034441,0.00014509,2]
[408184447,1773191432026,-483.10034441,0.00014509,2]
[408184448,1773191432041,-483.10034441,0.00014509,2]
[408184449,1773191432051,-483.10034441,0.00014509,2]
[408184450,1773191432061,-483.10034441,0.00014509,2]
[408184451,1773191432070,-483.10034441,0.00014509,2]
[408184452,1773191432080,-483.10034441,0.00014509,2]
[408184453,1773191432091,-483.10034441,0.00014509,2]
[408184454,1773191432099,-483.10034441,0.00014509,2]
[408184455,1773191432108,-483.10034441,0.00014509,2]
[408184456,1773191432118,-483.10034441,0.00014509,2]
[408184457,1773191432131,-483.10034441,0.00014509,2]
[408184458,1773191432142,-483.10034441,0.00014509,2]
[408184459,1773191432151,-483.10034441,0.00014509,2]
[408184460,1773191432160,-483.10034441,0.00014509,2]
[408184461,1773191432169,-483.10034441,0.00014509,2]
[408184462,1773191432178,-483.10034441,0.00014509,2]
[408184463,1773191432187,-483.10034441,0.00014509,2]
[408184464,1773191432196,-483.10034441,0.00014509,2]
[408184465,1773191432205,-571.63,0.00014925,2]
[408184466,1773191432214,-150.0,0.00014999,2]
[408184467,1773191432223,-502.24241651,0.00015,30]
[408184468,1773191432232,-597.34120166,0.00015,30]
[408184469,1773191432241,-500.0,0.00015,30]
[408184470,1773191432249,-500.0,0.00015,30]
[408184471,1773191432258,-500.0,0.00015,30]
[408184472,1773191432267,-500.0,0.00015,30]
[408184473,1773191432276,-500.0,0.00015,30]
[408184474,1773191432285,-500.0,0.00015,30]
[408184475,1773191432294,-500.0,0.00015,30]
[408184476,1773191432303,-881.14285643,0.00015,30]
[408184477,1773191432312,-500.0,0.00015,30]
[408184478,1773191432321,-500.0,0.00015,30]
[408184479,1773191432330,-500.0,0.00015,30]
[408184480,1773191432339,-500.0,0.00015,30]
[408184481,1773191432348,-57894.0,0.000153,2]
[408184482,1773191432357,-571.63,0.00015364,2]
[408184483,1773191432366,-500.0,0.00015696,2]
[408184484,1773191432375,-571.63,0.00015803,2]
[408184485,1773191432384,-150.0,0.000159,2]
[408184486,1773191432393,-150.0,0.000159,2]
[408184487,1773191432416,-150.0,0.000159,2]
[408184488,1773191432434,-5533.0,0.000159,3]
[408184489,1773191432445,-150.0,0.000159,2]
[408184490,1773191432454,-500.0,0.000159,2]
[408184491,1773191432463,-150.0,0.00015974,2]
[408184492,1773191432473,-255.0,0.00016124,2]
[408184493,1773191432482,-17393.28443502,0.0001619,2]
[408184494,1773191432495,-11453.53840813,0.0001619,2]
[408184495,1773191432508,-26253.93862121,0.0001619,2]
[408184496,1773191432518,-571.63,0.00016242,2]
[408184497,1773191432529,-5533.0,0.000165,5]
[408184498,1773191432538,-571.63,0.00016681,2]
[408184499,1773191432549,-150.0,0.00016836,2]
[408184500,1773191432558,-500.0,0.00016836,2]
[408184501,1773191432567,-150.0,0.00016836,2]
[408184502,1773191432577,-150.0,0.00016836,2]
[408184503,1773191432587,-150.0,0.00016836,2]
[408184504,1773191432597,-500.0,0.00016836,2]
[408184505,1773191432606,-500.0,0.00016836,2]
[408184506,1773191432615,-150.0,0.00016836,2]
[408184507,1773191432625,-150.0,0.00016836,2]
[408184508,1773191432634,-150.0,0.00016836,2]
[408184509,1773191432644,-2016.07,0.00016883,2]
[408184510,1773191432653,-150.0,0.00016891,2]
[408184511,1773191432663,-500.0,0.00016891,2]
[408184512,1773191432674,-150.0,0.00016891,2]
[408184513,1773191432684,-500.0,0.00016891,2]
[408184514,1773191432693,-500.0,0.00016891,2]
[408184515,1773191432703,-150.0,0.00016891,2]
[408184516,1773191432713,-173.23,0.00016912,3]
[408184517,1773191432722,-519.72,0.00016912,3]
[408184518,1773191432734,-600.0,0.00016921,2]
[408184519,1773191432744,-1382.27,0.00016922,2]
[408184520,1773191432753,-299.99,0.00016922,4]
[408184521,1773191432764,-499.99,0.00016922,2]
[408184522,1773191432785,-150.99,0.00016922,2]
[408184523,1773191432804,-2910.52,0.00016922,2]
[408184524,1773191432814,-9999.99,0.00016922,2]
[408184525,1773191432824,-9862.63727002,0.00016922,2]
[408184526,1773191432836,-137.35272998,0.00016922,2]
[408184527,1773191432847,-150.0,0.00016946,2]
[408184528,1773191432859,-150.0,0.00016946,2]
[408184529,1773191432872,-162.64727002,0.00016946,2]